[Event "FIDE WCCC Open-12 2024"]
[Site "Montesilvano"]
[Date "2024.11.25"]
[Round "10.14"]
[White "Gao, Arthur"]
[Black "Sahbudak, Baris Cinar"]
[Result "1-0"]
[ECO "A05"]
[WhiteElo "1979"]
[BlackElo "2264"]
[Annotator "RC"]
[PlyCount "83"]
[EventDate "2024.11.18"]
[EventType "swiss"]
[EventCountry "ITA"]
[SourceTitle "playchess.com"]
[Source "ChessBase"]
[SourceQuality "1"]
[TimeControl "5400+30"]

1. Nf3 {[%emt 0:00:02]} Nf6 {[%emt 0:01:32]} 2. g3 {[%emt 0:00:04]} g6 {[%emt 0:01:04]} 3. b3 {[%emt 0:00:05]} Bg7 {[%emt 0:00:50]} 4. Bb2 {[%emt 0:00:04]} O-O {[%emt 0:00:47]} 5. Bg2 {[%emt 0:00:05]} d5 {[%emt 1:28:47]} 6. c4 {[%emt 0:01:49]} dxc4 {[%emt 0:00:00]} 7. bxc4 {[%emt 0:01:06]} c5 {[%emt 0:00:00]} 8. O-O {[%emt 0:05:16]} Nc6 {[%emt 0:00:00]} 9. Ne5 {[%emt 0:08:18]} Nxe5 {[%emt 0:00:00]} 10. Bxe5 {[%emt 0:00:09]} Ne8 {[%emt 0:00:00]} 11. Bxg7 {[%emt 0:00:23]} Kxg7 {[%emt 0:00:00]} 12. Nc3 {[%emt 0:12:31]} Qd4 {[%emt 0:00:00]} 13. Qb3 {[%emt 0:07:58]} Nd6 {[%emt 0:00:00]} 14. d3 {[%emt 0:01:06]} Be6 {[%emt 0:00:00]} 15. Rad1 {[%emt 0:14:25]} Rab8 {[%emt 0:00:00]} 16. a4 {[%emt 0:03:59]} h5 {[%emt 0:00:00]} 17. e3 {[%emt 0:09:57]} Qf6 {[%emt 0:00:00]} 18. f4 {[%emt 0:08:24]} h4 {[%emt 0:00:00]} 19. e4 {[%emt 0:11:16]} Qd4+ {[%emt 0:00:00]} 20. Kh1 {[%emt 0:00:16]} Bg4 {[%emt 0:00:00]} 21. Bf3 {[%emt 0:00:49]} Bh3 {[%emt 0:00:00]} 22. Bg2 {[%emt 0:01:18]} Bxg2+ {[%emt 0:00:00]} 23. Kxg2 {[%emt 0:00:07]} f6 {[%emt 0:00:00]} 24. Ne2 {[%emt 0:07:48]} Qe3 {[%emt 0:00:00]} 25. Qc2 {[%emt 0:01:24]} g5 {[%emt 0:00:00]} 26. gxh4 {[%emt 0:00:35]} g4 {[%emt 0:00:00]} 27. Ng3 {[%emt 0:00:40]} e6 {[%emt 0:00:00]} 28. Rde1 {[%emt 0:03:00]} Qd4 {[%emt 0:00:00]} 29. Ne2 {[%emt 0:00:04]} Qe3 {[%emt 0:00:00]} 30. Ng3 {[%emt 0:00:05]} Qd4 {[%emt 0:00:00]} 31. e5 {[%emt 0:02:23]} Nf5 {[%emt 0:00:36]} 32. Nxf5+ {[%emt 0:00:32]} exf5 {[%emt 0:00:02]} 33. exf6+ {[%emt 0:00:20]} Rxf6 {[%emt 0:00:10]} 34. Qe2 {[%emt 0:00:41]} Rh8 {[%emt 0:02:57]} 35. Qe7+ {[%emt 0:00:25]} Kg6 {[%emt 0:00:04]} 36. Re6 {[%emt 0:00:22]} Rxh4 {[%emt 0:01:38]} 37. Qe8+ {[%emt 0:00:19]} Kh6 {[%emt 0:01:38]} 38. Qh8+ {[%emt 0:00:06]} Kg6 {[%emt 0:00:06]} 39. Qg8+ {[%emt 0:00:06]} Kh6 {[%emt 0:00:04]} 40. Qg5+ {[%emt 0:00:03]} Kh7 {[%emt 0:00:05]} 41. Re7+ {[%emt 0:00:05]} Kh8 {[%emt 0:00:38]} 42. Qg7# {[%emt 0:00:05]} 1-0

[Event "FIDE WCCC Open-12 2024"]
[Site "Montesilvano"]
[Date "2024.11.25"]
[Round "10.15"]
[White "Zhang, Haoxuan"]
[Black "Obidjonov, Oriyat"]
[Result "1-0"]
[ECO "B44"]
[WhiteElo "1951"]
[BlackElo "2074"]
[Annotator "RC"]
[PlyCount "95"]
[EventDate "2024.11.18"]
[EventType "swiss"]
[EventCountry "ITA"]
[SourceTitle "playchess.com"]
[Source "ChessBase"]
[SourceQuality "1"]
[TimeControl "5400+30"]

1. e4 {[%emt 0:00:09]} c5 {[%emt 0:00:12]} 2. Nf3 {[%emt 0:00:14]} e6 {[%emt 0:00:04]} 3. d4 {[%emt 0:00:11]} cxd4 {[%emt 0:00:04]} 4. Nxd4 {[%emt 0:00:09]} Nc6 {[%emt 0:00:01]} 5. Nb5 {[%emt 0:00:13]} d6 {[%emt 0:03:36]} 6. c4 {[%emt 0:01:18]} a6 {[%emt 0:01:40]} 7. N5c3 {[%emt 0:02:03]} Nf6 {[%emt 0:02:54]} 8. Be3 {[%emt 0:02:21]} Be7 {[%emt 0:01:54]} 9. Be2 {[%emt 0:02:11]} O-O {[%emt 0:02:06]} 10. O-O {[%emt 0:01:49]} Qc7 {[%emt 0:11:28]} 11. Na3 {[%emt 0:02:04]} Bd7 {[%emt 0:03:01]} 12. Rc1 {[%emt 0:02:33]} Rac8 {[%emt 0:01:28]} 13. f3 {[%emt 0:05:11]} Qa5 {[%emt 0:11:43]} 14. Qd2 {[%emt 0:06:39]} Rfd8 {[%emt 0:01:30]} 15. Rfd1 {[%emt 0:06:22]} Be8 {[%emt 0:02:30]} 16. Nc2 {[%emt 0:04:38]} Ne5 {[%emt 0:06:45]} 17. Nd5 {[%emt 0:09:59]} Qxd2 {[%emt 0:00:15]} 18. Nxe7+ {[%emt 0:00:07]} Kf8 {[%emt 0:00:02]} 19. Bxd2 {[%emt 0:01:11]} Kxe7 {[%emt 0:00:05]} 20. Ne3 {[%emt 0:00:35]} Nc6 {[%emt 0:07:29]} 21. Bc3 {[%emt 0:02:51]} Rb8 {[%emt 0:00:37]} 22. a4 {[%emt 0:04:34]} Na7 {[%emt 0:08:38]} 23. e5 {[%emt 0:02:25]} Nd7 {[%emt 0:00:41]} 24. exd6+ {[%emt 0:00:51]} Kf8 {[%emt 0:00:07]} 25. a5 {[%emt 0:04:39]} Kg8 {[%emt 0:03:52]} 26. b4 {[%emt 0:02:32]} Rbc8 {[%emt 0:00:25]} 27. Kf2 {[%emt 0:07:55]} Nc6 {[%emt 0:05:34]} 28. f4 {[%emt 0:02:02]} Nf8 {[%emt 0:02:35]} 29. g3 {[%emt 0:05:01]} Rd7 {[%emt 0:00:07]} 30. b5 {[%emt 0:02:32]} Nb8 {[%emt 0:00:57]} 31. Rc2 {[%emt 0:02:50]} h6 {[%emt 0:05:50]} 32. Bb4 {[%emt 0:02:00]} f6 {[%emt 0:03:13]} 33. f5 {[%emt 0:02:47]} Bf7 {[%emt 0:00:06]} 34. fxe6 {[%emt 0:01:02]} Bxe6 {[%emt 0:00:02]} 35. Rb2 {[%emt 0:00:21]} Re8 {[%emt 0:04:44]} 36. Bf3 {[%emt 0:00:26]} Bf7 {[%emt 0:01:07]} 37. bxa6 {[%emt 0:01:19]} Nc6 {[%emt 0:11:38]} 38. axb7 {[%emt 0:00:29]} Ne5 {[%emt 0:00:00]} 39. Bc3 {[%emt 0:00:50]} Nxf3 {[%emt 0:00:00]} 40. Kxf3 {[%emt 0:00:05]} Rdd8 {[%emt 0:00:00]} 41. d7 {[%emt 0:02:19]} Nxd7 {[%emt 0:00:00]} 42. Rxd7 {[%emt 0:00:12]} Rxd7 {[%emt 0:00:00]} 43. b8=Q {[%emt 0:00:06]} Rxb8 {[%emt 0:00:00]} 44. Rxb8+ {[%emt 0:00:06]} Kh7 {[%emt 0:03:30]} 45. a6 {[%emt 0:00:20]} Ra7 {[%emt 0:00:00]} 46. Rb7 {[%emt 0:00:25]} Rxa6 {[%emt 0:00:00]} 47. Rxf7 {[%emt 0:00:07]} Kg6 {[%emt 0:00:00]} 48. Rc7 {[%emt 0:00:08]} 1-0

[Event "FIDE WCCC Open-12 2024"]
[Site "Montesilvano"]
[Date "2024.11.25"]
[Round "10.16"]
[White "Qu, Haoming"]
[Black "Karthi, Jashith"]
[Result "1/2-1/2"]
[ECO "B22"]
[WhiteElo "1969"]
[BlackElo "2073"]
[Annotator "RC"]
[PlyCount "70"]
[EventDate "2024.11.18"]
[EventType "swiss"]
[EventCountry "ITA"]
[SourceTitle "playchess.com"]
[Source "ChessBase"]
[SourceQuality "1"]
[TimeControl "5400+30"]

1. e4 {[%emt 0:00:01]} c5 {[%emt 0:00:06]} 2. Nf3 {[%emt 0:00:08]} e6 {[%emt 0:00:04]} 3. c3 {[%emt 0:00:04]} Nf6 {[%emt 0:00:05]} 4. e5 {[%emt 0:00:26]} Nd5 {[%emt 0:00:09]} 5. Bc4 {[%emt 0:00:12]} Nc6 {[%emt 0:04:50]} 6. d4 {[%emt 0:00:13]} cxd4 {[%emt 0:01:23]} 7. cxd4 {[%emt 0:00:08]} Nb6 {[%emt 0:03:38]} 8. Bb3 {[%emt 0:00:50]} Be7 {[%emt 0:02:32]} 9. O-O {[%emt 0:00:40]} d6 {[%emt 0:01:19]} 10. Qe2 {[%emt 0:00:32]} O-O {[%emt 0:01:01]} 11. Nc3 {[%emt 0:00:35]} dxe5 {[%emt 0:02:34]} 12. dxe5 {[%emt 0:00:18]} Nd5 {[%emt 0:03:14]} 13. Qe4 {[%emt 1:32:53]} Nxc3 {[%emt 0:04:18]} 14. bxc3 {[%emt 0:00:00]} f5 {[%emt 0:01:13]} 15. exf6 {[%emt 0:00:00]} Bxf6 {[%emt 0:00:41]} 16. Bxe6+ {[%emt 0:00:00]} Bxe6 {[%emt 0:00:11]} 17. Qxe6+ {[%emt 0:00:00]} Kh8 {[%emt 0:00:01]} 18. Be3 {[%emt 0:00:00]} Bxc3 {[%emt 0:04:51]} 19. Rad1 {[%emt 0:00:00]} Qf6 {[%emt 0:04:12]} 20. Qb3 {[%emt 0:00:00]} Na5 {[%emt 0:08:04]} 21. Qa4 {[%emt 0:00:00]} b6 {[%emt 0:04:16]} 22. Qc2 {[%emt 0:00:00]} Qg6 {[%emt 0:18:38]} 23. Qxc3 {[%emt 0:00:00]} Rxf3 {[%emt 0:00:43]} 24. Qc7 {[%emt 0:00:00]} Rff8 {[%emt 0:00:58]} 25. Rd7 {[%emt 0:00:00]} Rfc8 {[%emt 0:00:58]} 26. Qg3 {[%emt 0:00:00]} Rd8 {[%emt 0:05:33]} 27. Rxd8+ {[%emt 0:00:00]} Rxd8 {[%emt 0:00:15]} 28. Qc7 {[%emt 0:00:00]} Nc6 {[%emt 0:03:23]} 29. h4 {[%emt 0:00:00]} Qd6 {[%emt 0:00:21]} 30. Qf7 {[%emt 0:00:00]} Qd7 {[%emt 0:00:39]} 31. Qf4 {[%emt 0:00:00]} h6 {[%emt 0:01:00]} 32. Re1 {[%emt 0:00:00]} Qd6 {[%emt 0:01:13]} 33. Qf3 {[%emt 0:00:00]} Qd5 {[%emt 0:00:59]} 34. Qg3 {[%emt 0:00:00]} Nd4 {[%emt 0:03:09]} 35. Bxd4 {[%emt 0:00:00]} Qxd4 {[%emt 0:21:29]} 1/2-1/2

[Event "FIDE WCCC Open-12 2024"]
[Site "Montesilvano"]
[Date "2024.11.25"]
[Round "10.17"]
[White "Minga-Nagy, Abel Inti"]
[Black "Yerzhanuly Yernur"]
[Result "1/2-1/2"]
[ECO "C01"]
[WhiteElo "2033"]
[BlackElo "1917"]
[Annotator "RC"]
[PlyCount "60"]
[EventDate "2024.11.18"]
[EventType "swiss"]
[EventCountry "ITA"]
[SourceTitle "playchess.com"]
[Source "ChessBase"]
[SourceQuality "1"]
[TimeControl "5400+30"]

1. e4 {[%emt 0:00:03]} e6 {[%emt 0:00:05]} 2. d4 {[%emt 0:00:06]} d5 {[%emt 0:00:02]} 3. Bd3 {[%emt 0:00:35]} c5 {[%emt 0:00:07]} 4. exd5 {[%emt 0:00:37]} exd5 {[%emt 0:00:06]} 5. dxc5 {[%emt 0:07:24]} Bxc5 {[%emt 0:00:08]} 6. Ne2 {[%emt 0:00:05]} Nf6 {[%emt 0:03:20]} 7. O-O {[%emt 0:01:00]} h6 {[%emt 0:01:38]} 8. Nbc3 {[%emt 0:03:33]} O-O {[%emt 0:01:37]} 9. Nf4 {[%emt 0:01:15]} Be6 {[%emt 0:03:28]} 10. Nxe6 {[%emt 0:09:58]} fxe6 {[%emt 0:00:08]} 11. Qe2 {[%emt 0:01:12]} Qd7 {[%emt 0:04:29]} 12. Re1 {[%emt 0:18:54]} e5 {[%emt 0:01:44]} 13. Bb5 {[%emt 0:05:07]} Nc6 {[%emt 0:01:49]} 14. Be3 {[%emt 0:04:10]} Bxe3 {[%emt 0:18:02]} 15. fxe3 {[%emt 0:00:24]} a6 {[%emt 0:01:19]} 16. Ba4 {[%emt 0:04:35]} b5 {[%emt 0:00:29]} 17. Bb3 {[%emt 0:00:33]} Na5 {[%emt 0:00:09]} 18. Red1 {[%emt 0:02:44]} Nxb3 {[%emt 0:02:53]} 19. axb3 {[%emt 0:00:04]} Qc6 {[%emt 0:00:59]} 20. Na2 {[%emt 0:07:39]} Qc5 {[%emt 0:02:54]} 21. Nc1 {[%emt 0:01:32]} Rfe8 {[%emt 0:11:59]} 22. Nd3 {[%emt 0:01:00]} Qb6 {[%emt 0:02:10]} 23. h3 {[%emt 0:03:58]} Rad8 {[%emt 0:01:21]} 24. b4 {[%emt 0:01:36]} Ne4 {[%emt 0:04:18]} 25. Ra3 {[%emt 0:06:17]} d4 {[%emt 0:02:35]} 26. exd4 {[%emt 0:01:25]} exd4 {[%emt 0:04:26]} 27. Qh5 {[%emt 0:03:25]} Qf6 {[%emt 0:04:52]} 28. Re1 {[%emt 0:03:09]} Kh7 {[%emt 0:04:56]} 29. Qg4 {[%emt 0:03:15]} Nf2 {[%emt 0:06:01]} 30. Qg3 {[%emt 0:01:32]} Ne4 {[%emt 0:01:47]} 1/2-1/2

[Event "FIDE WCCC Open-12 2024"]
[Site "Montesilvano"]
[Date "2024.11.25"]
[Round "10.18"]
[White "Chen, Jun-Wei"]
[Black "Batbaatar, Baatar"]
[Result "0-1"]
[ECO "B90"]
[WhiteElo "1907"]
[BlackElo "2030"]
[Annotator "RC"]
[PlyCount "72"]
[EventDate "2024.11.18"]
[EventType "swiss"]
[EventCountry "ITA"]
[SourceTitle "playchess.com"]
[Source "ChessBase"]
[SourceQuality "1"]
[TimeControl "5400+30"]

1. e4 {[%emt 0:00:07]} c5 {[%emt 0:00:12]} 2. Nf3 {[%emt 0:00:29]} d6 {[%emt 0:00:07]} 3. d4 {[%emt 0:00:35]} cxd4 {[%emt 0:00:15]} 4. Nxd4 {[%emt 0:01:00]} Nf6 {[%emt 0:01:50]} 5. Nc3 {[%emt 0:00:38]} a6 {[%emt 0:00:07]} 6. Rg1 {[%emt 0:00:34]} e5 {[%emt 0:00:09]} 7. Nb3 {[%emt 0:00:46]} Be6 {[%emt 0:01:46]} 8. g4 {[%emt 0:01:24]} d5 {[%emt 0:00:20]} 9. exd5 {[%emt 0:00:54]} Nxd5 {[%emt 0:00:20]} 10. Nxd5 {[%emt 0:01:08]} Qxd5 {[%emt 0:00:26]} 11. Qxd5 {[%emt 0:01:10]} Bxd5 {[%emt 0:00:12]} 12. Be3 {[%emt 0:00:27]} Nc6 {[%emt 0:00:36]} 13. c3 {[%emt 0:00:10]} O-O-O {[%emt 0:10:28]} 14. Nd2 {[%emt 0:02:40]} e4 {[%emt 0:22:42]} 15. O-O-O {[%emt 0:30:10]} Ne5 {[%emt 0:04:46]} 16. Kc2 {[%emt 0:01:41]} Bd6 {[%emt 0:06:14]} 17. h3 {[%emt 0:02:45]} Rhe8 {[%emt 0:14:29]} 18. Bg2 {[%emt 0:03:26]} Ng6 {[%emt 0:02:05]} 19. Rge1 {[%emt 0:03:58]} Bf4 {[%emt 0:14:57]} 20. Nxe4 {[%emt 0:25:37]} Bxe4+ {[%emt 0:02:01]} 21. Bxe4 {[%emt 0:00:04]} Rxd1 {[%emt 0:00:09]} 22. Bf5+ {[%emt 0:01:02]} Rd7 {[%emt 0:00:37]} 23. Rd1 {[%emt 0:01:39]} Re6 {[%emt 0:00:17]} 24. Bd4 {[%emt 0:05:43]} Be5 {[%emt 0:01:48]} 25. Re1 {[%emt 0:04:28]} Bxd4 {[%emt 0:01:45]} 26. Bxe6 {[%emt 0:00:06]} fxe6 {[%emt 0:00:13]} 27. cxd4 {[%emt 0:00:08]} Rd6 {[%emt 0:00:05]} 28. Re4 {[%emt 0:00:07]} Kd7 {[%emt 0:00:07]} 29. g5 {[%emt 0:00:24]} Rd5 {[%emt 0:00:11]} 30. h4 {[%emt 0:00:07]} Rf5 {[%emt 0:00:05]} 31. h5 {[%emt 0:00:15]} Rxf2+ {[%emt 0:00:19]} 32. Kc3 {[%emt 0:00:06]} Ne7 {[%emt 0:00:04]} 33. Rh4 {[%emt 0:00:33]} h6 {[%emt 0:00:12]} 34. g6 {[%emt 0:00:22]} Nd5+ {[%emt 0:00:06]} 35. Kb3 {[%emt 0:00:14]} Nf6 {[%emt 0:00:05]} 36. Kc4 {[%emt 0:01:14]} Rf5 {[%emt 0:00:12]} 0-1

[Event "FIDE WCCC Open-12 2024"]
[Site "Montesilvano"]
[Date "2024.11.25"]
[Round "10.19"]
[White "Le, Anh Tu"]
[Black "Tatvidze, Davit"]
[Result "0-1"]
[ECO "B33"]
[WhiteElo "1812"]
[BlackElo "2024"]
[Annotator "RC"]
[PlyCount "121"]
[EventDate "2024.11.18"]
[EventType "swiss"]
[EventCountry "ITA"]
[SourceTitle "playchess.com"]
[Source "ChessBase"]
[SourceQuality "1"]
[TimeControl "5400+30"]

1. e4 {[%emt 0:00:04]} c5 {[%emt 0:00:04]} 2. Nf3 {[%emt 0:00:05]} Nc6 {[%emt 0:00:03]} 3. d4 {[%emt 0:00:06]} cxd4 {[%emt 0:00:03]} 4. Nxd4 {[%emt 0:00:06]} Nf6 {[%emt 0:00:18]} 5. Nc3 {[%emt 0:00:05]} e5 {[%emt 0:00:03]} 6. Ndb5 {[%emt 0:00:07]} d6 {[%emt 0:00:10]} 7. Bg5 {[%emt 0:00:09]} a6 {[%emt 0:00:08]} 8. Na3 {[%emt 0:00:03]} b5 {[%emt 0:00:03]} 9. Nd5 {[%emt 0:00:08]} Be7 {[%emt 0:00:08]} 10. Bxf6 {[%emt 0:00:07]} Bxf6 {[%emt 0:00:05]} 11. c3 {[%emt 0:00:07]} Rb8 {[%emt 0:00:14]} 12. Nc2 {[%emt 0:00:18]} Bg5 {[%emt 0:00:09]} 13. Qd3 {[%emt 0:00:10]} O-O {[%emt 0:26:44]} 14. Be2 {[%emt 0:00:08]} Be6 {[%emt 0:00:15]} 15. O-O {[%emt 0:09:48]} g6 {[%emt 0:01:19]} 16. Rad1 {[%emt 0:00:21]} Kg7 {[%emt 0:01:52]} 17. Bf3 {[%emt 0:00:26]} a5 {[%emt 0:04:57]} 18. Na3 {[%emt 0:10:41]} b4 {[%emt 0:21:34]} 19. Nc4 {[%emt 0:04:13]} bxc3 {[%emt 0:00:55]} 20. bxc3 {[%emt 0:02:49]} Ne7 {[%emt 0:01:45]} 21. Nce3 {[%emt 0:23:29]} Bxe3 {[%emt 0:01:10]} 22. fxe3 {[%emt 0:01:05]} Nxd5 {[%emt 0:04:41]} 23. exd5 {[%emt 0:00:12]} Bf5 {[%emt 0:00:40]} 24. e4 {[%emt 0:00:19]} Qb6+ {[%emt 0:00:09]} 25. Kh1 {[%emt 0:01:08]} Bd7 {[%emt 0:00:11]} 26. c4 {[%emt 0:00:07]} Qc5 {[%emt 0:03:43]} 27. Rb1 {[%emt 0:01:11]} Rb4 {[%emt 0:00:45]} 28. Rxb4 {[%emt 0:00:47]} axb4 {[%emt 0:00:35]} 29. Rb1 {[%emt 0:01:48]} Rc8 {[%emt 0:03:54]} 30. Be2 {[%emt 0:01:56]} Ra8 {[%emt 0:00:14]} 31. Qd2 {[%emt 0:00:43]} Rb8 {[%emt 0:20:41]} 32. h3 {[%emt 0:03:21]} h6 {[%emt 0:00:12]} 33. Rb3 {[%emt 0:02:21]} Ba4 {[%emt 0:03:22]} 34. Rb1 {[%emt 0:02:01]} b3 {[%emt 0:02:05]} 35. axb3 {[%emt 0:00:12]} Rxb3 {[%emt 0:00:33]} 36. Rxb3 {[%emt 0:00:51]} Bxb3 {[%emt 0:00:06]} 37. Qc3 {[%emt 0:00:18]} Ba4 {[%emt 0:02:14]} 38. Qf3 {[%emt 0:02:06]} Bd7 {[%emt 0:01:43]} 39. Qb3 {[%emt 0:00:40]} Qf2 {[%emt 0:01:00]} 40. Bf3 {[%emt 0:00:38]} h5 {[%emt 0:00:23]} 41. Qd3 {[%emt 0:07:52]} h4 {[%emt 0:00:19]} 42. Qe2 {[%emt 0:00:50]} Qd4 {[%emt 0:00:08]} 43. Qe1 {[%emt 0:03:25]} g5 {[%emt 0:01:20]} 44. Qc1 {[%emt 0:01:06]} Kg6 {[%emt 0:00:46]} 45. Qa3 {[%emt 0:00:17]} Qb6 {[%emt 0:00:15]} 46. Qd3 {[%emt 0:01:30]} Qb4 {[%emt 0:00:28]} 47. Qe2 {[%emt 0:00:06]} Qc3 {[%emt 0:00:30]} 48. Bg4 {[%emt 0:01:10]} Bxg4 {[%emt 0:00:39]} 49. Qxg4 {[%emt 0:00:21]} Qc1+ {[%emt 0:00:25]} 50. Kh2 {[%emt 0:00:07]} Qf4+ {[%emt 0:00:42]} 51. Qxf4 {[%emt 0:00:13]} exf4 {[%emt 0:00:24]} 52. Kg1 {[%emt 0:00:04]} Kf6 {[%emt 0:00:17]} 53. Kf2 {[%emt 0:00:22]} Ke5 {[%emt 0:00:05]} 54. Kf3 {[%emt 0:06:05]} f6 {[%emt 0:00:18]} 55. c5 {[%emt 0:00:07]} dxc5 {[%emt 0:00:04]} 56. Kg4 {[%emt 0:00:01]} c4 {[%emt 0:00:12]} 57. Kf3 {[%emt 0:00:04]} f5 {[%emt 0:01:39]} 58. exf5 {[%emt 0:00:36]} Kxd5 {[%emt 0:00:03]} 59. f6 {[%emt 0:00:12]} Ke6 {[%emt 0:00:03]} 60. Ke4 {[%emt 0:00:06]} Kxf6 {[%emt 0:00:12]} 61. Kd4 {[%emt 0:00:37]} 0-1

[Event "FIDE WCCC Open-12 2024"]
[Site "Montesilvano"]
[Date "2024.11.25"]
[Round "10.20"]
[White "Nguyen, Anh Khoi"]
[Black "Kleschevnikov, Arseny"]
[Result "1/2-1/2"]
[ECO "A13"]
[WhiteElo "2520"]
[BlackElo "1893"]
[Annotator "TA"]
[PlyCount "75"]
[EventDate "2024.11.18"]
[EventType "swiss"]
[EventCountry "ITA"]
[SourceTitle "playchess.com"]
[Source "ChessBase"]
[SourceQuality "1"]
[TimeControl "5400+30"]

{[%evp 14,75,6,17,30,26,32,16,28,8,0,0,9,0,0,0,0,0,-7,-8,10,7,63,8,17,24,72,69,127,92,88,79,74,18,16,13,31,30,29,31,24,2,15,10,30,30,45,14,23,13,15,16,21,20,38,33,45,20,26,27,17,0,0,0]} 1. c4 {[%emt 0:00:01]} e6 {[%emt 0:00:03]} 2. Nf3 {[%emt 0:00:04]} d5 {[%emt 0:00:10]} 3. g3 {[%emt 0:00:06]} Nf6 {[%emt 0:00:17]} 4. Bg2 {[%emt 0:00:07]} d4 {[%emt 0:01:46]} 5. O-O {[%emt 0:00:11]} c5 {[%emt 0:00:04]} 6. e3 {[%emt 0:00:04]} Nc6 {[%emt 0:00:26]} 7. exd4 {[%emt 0:00:06]} cxd4 {[%emt 0:00:03]} 8. d3 {[%emt 0:00:08]} Bd6 {[%emt 0:00:23]} 9. Bg5 {[%emt 0:00:07]} h6 {[%emt 0:00:06]} 10. Bxf6 {[%emt 0:00:03]} Qxf6 {[%emt 0:00:03]} 11. Nbd2 {[%emt 0:00:06]} Qe7 {[%emt 0:00:26]} 12. Re1 {[%emt 0:01:58]} O-O {[%emt 0:00:14]} 13. a3 {[%emt 0:00:16]} a5 {[%emt 0:04:12]} 14. Nb3 {[%emt 0:01:39]} Qf6 {[%emt 0:01:53]} ({Don't play} 14... e5 $6 15. Nfxd4 Nxd4 16. Nxd4 $16) 15. c5 {[%emt 0:00:28]} Bc7 {[%emt 0:04:23]} 16. Rc1 {[%emt 0:00:22]} e5 {[%emt 0:08:24]} 17. Nbd2 {[%emt 0:05:42][%cal Bb3d2,Bd2c4,Bc4d6][%mdl 32]} Re8 {[%emt 0:10:35]} (17... Bg4 $11) 18. Qc2 {[%emt 0:20:41]} ({Better is} 18. Ne4 $1 $14 Qg6 19. Nfd2) 18... Qd8 {[%emt 0:21:58]} 19. Nc4 {[%emt 0:07:07]} Kh8 {[%emt 0:14:43]} (19... a4 $11 {was preferrable.}) 20. Nfd2 $16 {[%emt 0:14:46]} f5 {[%emt 0:00:25] [#] Against Ne4} (20... Be6 $14) 21. Nd6 $1 {[%emt 0:05:03][%mdl 512] White is more active.} Bxd6 {[%emt 0:00:52]} 22. cxd6 {[%emt 0:00:08]} Qxd6 {[%emt 0:06:03] [#]} 23. Nc4 {[%emt 0:00:09]} (23. Qc5 $1 $16 {[%cal Rc5d6]} Qf6 24. Nc4) 23... Qf6 $11 {[%emt 0:04:15]} 24. f4 $1 {[%emt 0:01:43] next fxe5 is good for White.} e4 {[%emt 0:05:44]} 25. dxe4 {[%emt 0:01:08]} fxe4 {[%emt 0:00:05]} 26. Bxe4 {[%emt 0:00:26]} Bh3 {[%emt 0:03:47]} 27. Qd3 {[%emt 0:06:16]} Rad8 {[%emt 0:01:48]} 28. Nd2 {[%emt 0:00:15]} Qd6 {[%emt 0:04:15]} 29. Nf3 {[%emt 0:00:30]} Be6 {[%emt 0:00:57]} 30. Re2 {[%emt 0:21:47]} Bd5 {[%emt 0:00:48]} 31. Rce1 {[%emt 0:00:11]} Bxe4 {[%emt 0:00:40]} 32. Rxe4 {[%emt 0:00:02]} Rxe4 {[%emt 0:00:18]} 33. Rxe4 {[%emt 0:01:22]} Qc5 {[%emt 0:01:06]} 34. Re1 {[%emt 0:00:47] Prevents Qc1.} Qd5 {[%emt 0:00:55]} 35. Nh4 {[%emt 0:02:53]} a4 {[%emt 0:02:54]} 36. Ng6+ {[%emt 0:00:06]} Kg8 {[%emt 0:00:02]} 37. Ne5 {[%emt 0:04:28]} Nxe5 {[%emt 0:01:01]} 38. Rxe5 {[%emt 0:00:04] Weighted Error Value: White=0.13 (very precise) /Black=0.12 (very precise) .  Mistake:       	White=2     	Black=3      Inaccurate:     	White=1     	---        OK:         	White=8     	Black=9      Best:        	---       	Black=2      Strong:       	White=1     	---} 1/2-1/2

[Event "FIDE WCCC Open-12 2024"]
[Site "Montesilvano"]
[Date "2024.11.25"]
[Round "10.21"]
[White "Mai, Duc Kien"]
[Black "Antipov, Fedor"]
[Result "0-1"]
[ECO "B23"]
[WhiteElo "1771"]
[BlackElo "1991"]
[Annotator "NA RC"]
[PlyCount "110"]
[EventDate "2024.11.18"]
[EventType "swiss"]
[EventCountry "ITA"]
[SourceTitle "playchess.com"]
[Source "ChessBase"]
[SourceQuality "1"]
[TimeControl "5400+30"]

1. e4 {[%emt 0:00:03]} c5 {[%emt 0:00:17]} 2. Nc3 {[%emt 0:00:24]} e6 {[%emt 0:03:58]} 3. d4 {[%emt 0:00:10]} cxd4 {[%emt 0:00:20]} 4. Qxd4 {[%emt 0:00:07]} Nc6 {[%emt 0:01:42]} 5. Qd3 {[%emt 0:00:09]} Qc7 {[%emt 0:08:17]} 6. Be3 {[%emt 0:11:15]} a6 {[%emt 0:04:25]} 7. O-O-O {[%emt 0:00:42]} Nf6 {[%emt 0:03:11]} 8. f3 {[%emt 0:03:09]} h5 {[%emt 0:07:07]} 9. Kb1 {[%emt 0:12:54]} b5 {[%emt 0:04:03]} 10. Be2 {[%emt 0:05:57]} d6 {[%emt 0:06:10]} 11. Bf4 {[%emt 0:05:57]} Ne5 {[%emt 0:02:28]} 12. Qd4 {[%emt 0:07:16]} Rb8 {[%emt 0:04:09]} 13. Rd2 {[%emt 0:11:16]} Nc4 {[%emt 0:17:28]} 14. Bxc4 {[%emt 0:03:39]} e5 {[%emt 0:05:38]} 15. Qf2 {[%emt 0:03:18]} bxc4 {[%emt 0:06:25]} 16. Bg5 {[%emt 0:03:24]} Qa5 {[%emt 0:01:18]} 17. Qe3 {[%emt 0:05:17]} Be6 {[%emt 0:06:59]} 18. Nge2 {[%emt 0:07:29]} Be7 {[%emt 0:06:03]} 19. Bxf6 {[%emt 0:03:12]} Qa3 {[%emt 0:00:55]} 20. b3 {[%emt 0:01:25]} Bxf6 {[%emt 0:01:59]} 21. Nd5 {[%emt 0:02:32]} Bd8 {[%emt 0:01:10]} 22. Rdd1 {[%emt 0:04:29]} O-O {[%emt 0:01:52]} 23. Qc1 {[%emt 0:00:22]} Qc5 {[%emt 0:00:09]} 24. Qe3 {[%emt 0:01:11]} Qxe3 {[%emt 0:00:33]} 25. Nxe3 {[%emt 0:00:15]} cxb3 {[%emt 0:00:03]} 26. axb3 {[%emt 0:00:14]} Bxb3 {[%emt 0:00:17]} 27. cxb3 {[%emt 0:00:22]} Rxb3+ {[%emt 0:00:05]} 28. Kc2 {[%emt 0:00:37]} Rxe3 {[%emt 0:00:08]} 29. Kd2 {[%emt 0:01:00]} Ra3 {[%emt 0:00:36]} 30. Ra1 {[%emt 0:02:38]} Bg5+ {[%emt 0:00:23]} 31. Kc2 {[%emt 0:00:46]} Rc8+ {[%emt 0:00:15]} 32. Kb2 {[%emt 0:00:03]} Rd3 {[%emt 0:01:12]} 33. Rhd1 {[%emt 0:00:18]} Re3 {[%emt 0:01:31]} 34. Re1 {[%emt 0:00:35]} Rc6 {[%emt 0:00:36]} 35. Ng3 {[%emt 0:05:35]} Rec3 {[%emt 0:03:41]} 36. Ne2 {[%emt 0:00:00]} Rc2+ {[%emt 0:00:19]} 37. Kb3 {[%emt 0:00:14]} R2c5 {[%emt 0:00:38]} 38. h4 {[%emt 0:00:38]} Bxh4 {[%emt 0:00:51]} 39. Rec1 {[%emt 0:00:09]} Rb5+ {[%emt 0:00:54]} 40. Ka4 {[%emt 0:00:09]} Rxc1 {[%emt 0:00:49]} 41. Rxc1 {[%emt 0:00:19]} Rb2 {[%emt 0:00:08]} 42. Nc3 {[%emt 0:00:22]} Rxg2 {[%emt 0:00:09]} 43. Rh1 {[%emt 0:00:05]} Bd8 {[%emt 0:00:55]} 44. Rxh5 {[%emt 0:00:40]} Rg3 {[%emt 0:00:09]} 45. Nd5 {[%emt 0:00:15]} Rxf3 {[%emt 0:00:15]} 46. Rh2 {[%emt 0:00:26]} Rd3 {[%emt 0:00:35]} 47. Rc2 {[%emt 0:00:11]} Rd4+ {[%emt 0:00:14]} 48. Kb3 {[%emt 0:00:04]} Bg5 {[%emt 0:00:13]} 49. Rc6 {[%emt 0:00:17]} Rxe4 {[%emt 0:03:28]} 50. Rxa6 {[%emt 0:00:16]} Rd4 {[%emt 0:00:00]} 51. Rxd6 {[%emt 0:00:04]} g6 {[%emt 0:00:00]} 52. Kc3 {[%emt 0:00:08]} Kg7 {[%emt 0:00:00]} 53. Rd7 {[%emt 0:00:05]} Bd2+ {[%emt 0:00:00]} 54. Kc2 {[%emt 0:00:04]} Ba5 {[%emt 0:00:00]} 55. Kc1 {[%emt 0:00:19]} g5 {[%emt 0:00:00]} 0-1